Cogmind - Beta 13 @@@ ROGUE MODE // 2024.03.24 @ 00:48:24 Player: Mogwok Wargfriend Result: Destroyed by S-43 Plague with Heavy Machine Gun Performance ------------- Evolutions (6) 3000 Regions Visited (13) 2600 Robots Destroyed (67) 335 Value Destroyed (1717) 1717 Prototype IDs (18) 360 Alien Tech Used (0) 0 Bonus (1079) 1079 TOTAL SCORE: 9091 Bonus ------- Follower Combat Kills 104 Met Warlord at Base 500 MAIN.C Attacked Warlord 500 Friendly Fire -25 Cogmind --------- Core Integrity 0/1150 Matter 128/300 Energy 9/100 System Corruption 0% Temperature Cool (0) Movement Hovering (70) Location -3/Proximity Caves Parts ------- > --- POWER (1) -------- (None) > --- PROPULSION (5) --- Gyrokinetic Inverter > --- UTILITY (10) ----- Improved Signal Interpreter Improved Signal Interpreter Advanced Targeting Computer Advanced Targeting Computer Advanced Targeting Computer Advanced Shield Generator Advanced Hacking Suite System Shield System Shield > --- WEAPON (3) ------- (None) > --- INVENTORY (5) ---- Makeshift Trap Scanner Advanced Trap Extractor (0/8) Minesniffer Drone Bay (10/10) Minesniffer Drone Bay (10/10) Peak State ------------ > --- POWER ------------ Micro Fission Core > --- PROPULSION ------- Gyrokinetic Inverter VTOL Module VTOL Module VTOL Module VTOL Module > --- UTILITY ---------- Advanced Power Amplifier Improved Cryofiber Web Improved Cryofiber Web Improved Cryofiber Web Long-range Sensor Array Improved Signal Interpreter Improved Signal Interpreter Improved Targeting Computer Advanced Transmission Jammer System Shield > --- WEAPON ----------- Improved Datajack Katana > --- INVENTORY -------- Micro Fission Core Micro Fission Core Advanced Sensor Array Improved Arc Projector Heavy Flak Cannon [Rating: 75] Favorites ----------- Power Improved Ion Engine Engine Improved Ion Engine Power Core Micro Fission Core Reactor Heavy Antimatter Reactor Propulsion Light Treads Treads Light Treads Wheel Wheel Hover Unit Gyrokinetic Inverter Flight Unit VTOL Module Utility Improved Signal Interpreter Device Heat Sink Storage Large Storage Unit Processor Improved Signal Interpreter Hackware System Shield Protection Hardened Medium Armor Plating Weapon Heavy Assault Rifle Energy Gun Beam Rifle Energy Cannon Advanced Beam Cannon Ballistic Gun Heavy Assault Rifle Ballistic Cannon Light Cannon Impact Weapon Makeshift Hammer Slashing Weapon Katana Piercing Weapon Force Lance Special Melee Weapon Improved Datajack Build | -11 -10 -9 -8 -7 -6 -6 -6 -5 -4 -4 -4 -4 -3 ------- Run | Yrd Mat Mat Mat Fac Fac Was Fac Fac Fac Upp Upp War Pro Slots Evolved 12 | . . 2 2 2 2 . . 2 2 . . . . Power . | . . . . . . . . . . . . . . Propulsion 3 | . . . 1 . . . . 1 1 . . . . Utility 8 | . . 2 1 2 1 . . 1 1 . . . . Weapon 1 | . . . . . 1 . . . . . . . . Parts Attached 136 | 9 1 21 8 8 3 2 30 6 22 2 18 5 1 Power 17 | 1 . 3 . 3 . . 5 1 . . 4 . . Engine 8 | 1 . 3 . 1 . . 3 . . . . . . Core 7 | . . . . . . . 2 1 . . 4 . . Reactor 2 | . . . . 2 . . . . . . . . . Propulsion 37 | 3 . 5 1 1 . . 15 . 6 . 6 . . Treads 7 | . . 2 1 1 . . 1 . . . 2 . . Leg . | . . . . . . . . . . . . . . Wheel 6 | 3 . 3 . . . . . . . . . . . Hover 18 | . . . . . . . 13 . 1 . 4 . . Flight 6 | . . . . . . . 1 . 5 . . . . Utility 56 | 3 1 6 4 4 2 1 7 4 13 2 4 4 1 Device 27 | 2 . 3 . 2 1 . 1 . 11 2 3 1 1 Storage 3 | 1 1 . . . . . 1 . . . . . . Processor 13 | . . 2 1 1 . . 3 3 . . . 3 . Hackware 6 | . . . . . . . 2 1 2 . 1 . . Protection 7 | . . 1 3 1 1 1 . . . . . . . Artifact . | . . . . . . . . . . . . . . Weapon 26 | 2 . 7 3 . 1 1 3 1 3 . 4 1 . Energy Gun 10 | 1 . 4 . . 1 . 1 . 1 . 2 . . Energy Cannon 1 | . . . 1 . . . . . . . . . . Ballistic Gun 4 | 1 . 1 2 . . . . . . . . . . Ballistic Cannon 4 | . . 2 . . . 1 . . . . 1 . . Launcher . | . . . . . . . . . . . . . . Special Weapon . | . . . . . . . . . . . . . . Impact Weapon 2 | . . . . . . . . . . . 1 1 . Slashing Weapon 2 | . . . . . . . . 1 1 . . . . Piercing Weapon 2 | . . . . . . . 2 . . . . . . Special Melee Weapon 1 | . . . . . . . . . 1 . . . . Unidentified Prototypes 8 | . . . 1 3 . 1 1 . 1 . . 1 . Parts Lost 55 | . . 10 . . . 6 11 1 4 . 20 2 1 Power 7 | . . 2 . . . . 2 . . . 2 . 1 Propulsion 21 | . . 4 . . . 1 6 1 2 . 6 1 . Utility 15 | . . 1 . . . 2 3 . 2 . 7 . . Weapon 12 | . . 3 . . . 3 . . . . 5 1 . Highest Loss Streak 8 | . . 6 . . . 6 7 1 2 . 8 2 1 To Critical Strikes 1 | . . . . . . . . . . . 1 . . Average Slot Usage (%) 79 | . 100 92 98 94 97 44 56 34 67 94 55 52 52 Engine 5 | . 14 10 9 6 . . 1 . . . . . . Core 1 | . . . . . . . 4 4 5 5 3 5 4 Treads 11 | . . 16 27 23 20 8 3 . . . . . . Wheel 3 | . 28 5 . . . . . . . . . . . Hover 2 | . . . . . . . 9 5 1 5 4 6 5 Flight 1 | . . . . . . . . 5 19 21 3 . . Device 9 | . 14 10 9 12 13 5 4 . 11 26 9 2 1 Storage 5 | . 14 11 9 7 6 3 1 . . . . . . Processor 10 | . . 10 9 12 13 6 13 6 15 15 12 13 26 Hackware 4 | . . . . . . . 8 5 3 10 12 15 15 Protection 6 | . . 5 16 15 18 8 . . . . . . . Energy Gun 5 | . 14 10 6 . 5 2 2 . . . 2 6 . Energy Cannon 1 | . . . 2 7 6 2 . . . . . . . Ballistic Gun 5 | . 14 9 8 7 6 2 . . . . . . . Naked Turns 111 | . . . . . . 89 22 . . . . . . Heaviest Build 71 | 14 29 37 46 58 71 71 30 7 15 14 24 25 10 Greatest Support 62 | 26 20 40 60 62 62 62 29 8 21 16 28 19 11 Greatest Overweight (x) 13 | 1 1 2 1 . 1 13 1 1 1 . 4 2 . Average Overweight (x) . | . . . . . . . . . . . . . . Largest Inventory Capacity 15 | 8 15 15 15 15 15 15 10 5 5 5 5 5 5 Average Capacity 10 | 7 14 15 15 15 15 9 6 5 5 5 5 5 5 Most Carried 15 | 8 10 15 15 15 14 12 9 5 5 5 5 5 5 Average Carried 9 | 5 8 12 14 14 12 8 5 4 4 5 3 4 4 Final Capacity 15 | 8 15 15 15 15 15 5 5 5 5 5 5 5 5 Final Carried 15 | 8 10 15 15 14 12 5 4 5 5 5 5 5 4 Class Distribution -------------------- 36% | Mutant 19% | Scavenger-Mutant 17% | Hacker-Mutant 10% | Scavenger-Skirmisher 4% | Scavenger-Sprinter 4% | Scavenger-Tank 3% | Hacker-Gladiator 3% | Hacker-Sprinter Dominant Class ---------------- Mutant | -10/Materials Mutant | -9/Materials Scavenger-Mutant | -8/Materials Scavenger-Skirmisher | -7/Factory Scavenger-Tank | -6/Factory Mutant | -6/Waste Mutant | -6/Factory Mutant | -5/Factory Scavenger-Sprinter | -4/Factory Hacker-Sprinter | -4/Upper Caves Hacker-Mutant | -4/Upper Caves Hacker-Mutant | -4/Warlord Hacker-Mutant | -3/Proximity Caves Resources | -11 -10 -9 -8 -7 -6 -6 -6 -5 -4 -4 -4 -4 -3 ----------- Run | Yrd Mat Mat Mat Fac Fac Was Fac Fac Fac Upp Upp War Pro Matter Collected 1871 | 312 44 514 164 104 51 . 219 . 216 53 194 . . Remotely . | . . . . . . . . . . . . . . Salvage Created 2282 | 186 173 786 324 198 151 . 248 . 119 . 97 . . Parts 129 | 18 10 48 14 8 5 . 13 . 8 . 5 . . Haulers Intercepted 1 | . . . 1 . . . . . . . . . . Recyclers Shooed 5 | . . 2 1 . 2 . . . . . . . . Parts Field Recycled . | . . . . . . . . . . . . . . Retrieved Matter . | . . . . . . . . . . . . . . Parts Self-Destructed 10 | . . . . . . . . . . 2 7 . 1 Prevented 15 | . . . . . . . . . . 2 13 . . Kills | -11 -10 -9 -8 -7 -6 -6 -6 -5 -4 -4 -4 -4 -3 ------- Run | Yrd Mat Mat Mat Fac Fac Was Fac Fac Fac Upp Upp War Pro Combat Hostiles Destroyed 37 | . . 17 3 4 2 . 2 . 5 . 4 . . Melee 7 | . . . . . . . 2 . 5 . . . . Guns 18 | . . 12 3 2 1 . . . . . . . . Cannons 9 | . . 5 . 1 1 . . . . . 2 . . AOE 1 | . . . . . . . . . . . 1 . . Classes Destroyed 13 | 3 2 4 1 3 . . . . . . . . . Worker 10 | 2 . 3 . 1 2 . 2 . . . . . . Tunneler 4 | 4 . . . . . . . . . . . . . Hauler 1 | . . . 1 . . . . . . . . . . Recycler 6 | 1 1 1 2 . . . 1 . . . . . . Operator 2 | . 1 . 1 . . . . . . . . . . Watcher 7 | . 3 4 . . . . . . . . . . . Swarmer 11 | . . 4 . . . . . . 5 . 2 . . Grunt 11 | . . 6 1 1 2 . 1 . . . . . . Duelist 1 | . . 1 . . . . . . . . . . . Sentry 8 | . . 6 2 . . . . . . . . . . Specialist 1 | . . . . 1 . . . . . . . . . Hunter 1 | . . . . 1 . . . . . . . . . Programmer 4 | . . . . 1 . . 1 . . . 2 . . Best Kill Streak 8 | 5 2 8 2 4 3 . 2 . 4 . 1 . . Combat Bots Only 7 | . . 7 1 4 1 . 1 . 4 . 1 . . Max Kills in Single Turn 2 | 2 1 2 1 1 1 . 1 . 1 . 1 . . Gunslinging . | . . . . . . . . . . . . . . Exploded 1 | . . . . . . . . . . . 1 . . Melee 1 | . . . . . . . 1 . 1 . . . . Uniques/NPCs Destroyed . | . . . . . . . . . . . . . . Combat | -11 -10 -9 -8 -7 -6 -6 -6 -5 -4 -4 -4 -4 -3 -------- Run | Yrd Mat Mat Mat Fac Fac Was Fac Fac Fac Upp Upp War Pro Hostile Shots Fired 540 | . 1 131 32 10 6 9 137 4 23 1 153 7 26 Missed 182 | . . 31 9 4 1 . 50 . 8 . 58 6 15 Damage Taken 6127 | . 11 1339 337 160 118 403 1276 97 299 13 1880 . 194 Core 2328 | . . 237 30 34 20 177 595 72 149 . 889 . 125 Absorbed by Shields 56 | . . . . . . . . . . . . . 56 Regen/Repaired (Parts) 153 | . . 36 99 . . . . . . . . 18 . Core Remaining (%) 75 | 100 100 40 94 95 . . 6 92 . . . . . Volleys Fired 175 | 22 9 74 32 11 7 3 . . . . 17 . . Largest 3 | 2 2 2 2 2 3 3 . . . . 2 . . Hottest 171 | 70 70 91 91 91 171 171 . . . . 118 . . Shots Fired 347 | 44 18 141 63 22 21 9 . . . . 28 1 . Gun 271 | 44 18 116 49 11 14 6 . . . . 12 1 . Cannon 76 | . . 25 14 11 7 3 . . . . 16 . . Launcher . | . . . . . . . . . . . . . . Special . | . . . . . . . . . . . . . . Kinetic 181 | 22 9 82 31 11 7 3 . . . . 16 . . Thermal 155 | 22 9 59 32 11 14 6 . . . . 1 1 . Explosive . | . . . . . . . . . . . . . . Electromagnetic 11 | . . . . . . . . . . . 11 . . Robot Hit Streak 24 | 6 5 24 16 7 9 12 . . . . 14 . . Robot Miss Streak 8 | 2 1 4 2 1 3 1 . . . . 8 . . Penetration Max . | . . . . . . . . . . . . . . Secondary Targets . | . . . . . . . . . . . . . . Shots Hit Robots 280 | 27 11 105 44 16 12 9 19 . 9 . 28 . . Core Hits 120 | 10 7 43 11 9 12 3 7 . 5 . 13 . . Critical Kills 2 | . 1 . . 1 . . . . . . . . . Critical Parts Destroyed 1 | . . . . . . . . . . . 1 . . Critical Strikes 13 | . 4 2 2 1 . . 1 . 1 . 2 . . Burn 7 | . 3 2 2 . . . . . . . . . . Meltdown 1 | . . . . 1 . . . . . . . . . Destroy 1 | . 1 . . . . . . . . . . . . Smash 1 | . . . . . . . . . . . 1 . . Sever 2 | . . . . . . . . . 1 . 1 . . Impale 1 | . . . . . . . 1 . . . . . . Melee Attacks 74 | . . . . . . . 27 1 31 6 9 . . Impact 3 | . . . . . . . . . . . 3 . . Slashing 44 | . . . . . . . . 1 31 6 6 . . Piercing 27 | . . . . . . . 27 . . . . . . Sneak Attacks 5 | . . . . . . . 5 . . . . . . Combat Hostiles . | . . . . . . . . . . . . . . Follow-up Attacks 2 | . . . . . . . 2 . . . . . . Damage Inflicted 5459 | 283 109 1510 744 337 384 205 939 . 276 . 672 . . Guns 2619 | 283 109 1170 502 117 281 142 . . . . 15 . . Cannons 1244 | . . 330 227 179 103 63 . . . . 342 . . Explosions 110 | . . . . . . . . . . . 110 . . Melee 1417 | . . . . . . . 939 . 276 . 202 . . Ramming 69 | . . 10 15 41 . . . . . . 3 . . Kinetic 1964 | 95 45 964 283 117 74 44 . . . . 342 . . Thermal 1994 | 188 64 536 446 179 310 161 . . . . 110 . . Explosive . | . . . . . . . . . . . . . . Electromagnetic 15 | . . . . . . . . . . . 15 . . Impact 78 | . . . . . . . . . . . 78 . . Slashing 400 | . . . . . . . . . 276 . 124 . . Piercing 939 | . . . . . . . 939 . . . . . . Highest Corruption 14 | . . . . . . . 7 . 3 3 14 14 . Average Corruption 7 | . . . . . . . 4 . 3 3 11 14 . Corruption Purged . | . . . . . . . . . . . . . . Corruption Blocked . | . . . . . . . . . . . . . . Effects 41 | . . . . . . . 6 . 5 4 23 3 . Message Errors 7 | . . . . . . . 3 . 2 . 2 . . Matter Fused 9 | . . . . . . . 1 . . 2 5 1 . Heat Flow Errors 3 | . . . . . . . 1 . . . 2 . . Energy Discharges 9 | . . . . . . . 1 . 1 . 6 1 . Parts Rejected 1 | . . . . . . . . . . . 1 . . Data Loss (minor) 6 | . . . . . . . . . 1 2 3 . . Data Loss (major) 1 | . . . . . . . . . 1 . . . . Misfires 2 | . . . . . . . . . . . 1 1 . Misdirections 2 | . . . . . . . . . . . 2 . . Weapon Failures 1 | . . . . . . . . . . . 1 . . Overload Shots . | . . . . . . . . . . . . . . Overflow Damage 222 | . . . . . . . 179 . . . 43 . . Projectiles 1 | . . . . . . . . . . . 1 . . Explosions . | . . . . . . . . . . . . . . Melee 221 | . . . . . . . 179 . . . 42 . . Knockbacks 17 | . . 4 . . . . . . . . 13 . . Impact . | . . . . . . . . . . . . . . Kinetic 17 | . . 4 . . . . . . . . 13 . . Secondary . | . . . . . . . . . . . . . . Self-Inflicted Damage 1 | . . . . . . . . . . . 1 . . Shots . | . . . . . . . . . . . . . . Rammed 14 | . . 2 7 3 . . . . . . 1 . 1 Targets Rammed 15 | . . 2 7 4 . . . . . . 1 . 1 Kicked . | . . . . . . . . . . . . . . Crushed 1 | . . . . 1 . . . . . . . . . Highest Temperature 309 | 210 50 171 48 . 309 133 187 . . . 85 18 . Average Temperature 53 | 88 22 36 17 . 127 63 96 . . . 38 13 . Received Heat Transfer 843 | . 6 423 153 . 54 . 33 18 . . 144 . 12 Siege Activations . | . . . . . . . . . . . . . . Robots Corrupted . | . . . . . . . . . . . . . . Combat Hostiles . | . . . . . . . . . . . . . . Parts Fried . | . . . . . . . . . . . . . . Impact Corruptions 3 | . . . . . . . . . . . 3 . . Robots Melted 1 | . . . . 1 . . . . . . . . . Combat Hostiles 1 | . . . . 1 . . . . . . . . . Parts Melted 6 | . 1 . . 4 1 . . . . . . . . Heat Transferred 4714 | 555 407 1424 1110 222 660 336 . . . . . . . Parts Sabotaged 12 | . . . . . . . 8 . . . . 4 . Parts Stolen . | . . . . . . . . . . . . . . Parts Stripped . | . . . . . . . . . . . . . . Power Chain Reactions 1 | . . . . . . . . . . . 1 . . Alert | -11 -10 -9 -8 -7 -6 -6 -6 -5 -4 -4 -4 -4 -3 ------- Run | Yrd Mat Mat Mat Fac Fac Was Fac Fac Fac Upp Upp War Pro Peak Influence 256 | 35 112 202 167 100 124 43 86 17 256 . . . . Initial 66 | . 22 20 66 23 49 43 . . 2 . . . . Average 55 | 15 50 91 60 18 75 15 10 2 189 . . . . Maximum Alert Level 1 | . . 1 . . . . . . 1 . . . . Low Security (%) 95 | 100 100 98 100 100 100 100 100 100 33 . . . . Level 1 4 | . . 1 . . . . . . 66 . . . . Level 2 . | . . . . . . . . . . . . . . Level 3 . | . . . . . . . . . . . . . . Level 4 . | . . . . . . . . . . . . . . Level 5 . | . . . . . . . . . . . . . . High Security . | . . . . . . . . . . . . . . Max Security . | . . . . . . . . . . . . . . Squads Dispatched 14 | . . 2 4 3 1 . 2 . . . 1 . 1 Investigation 1 | . . . 1 . . . . . . . . . . Extermination 3 | . . . . 1 . . 2 . . . . . . Reinforcement 8 | . . 2 3 2 1 . . . . . . . . Assault 2 | . . . . . . . . . . . 1 . 1 Garrison . | . . . . . . . . . . . . . . Intercept . | . . . . . . . . . . . . . . Searches Triggered . | . . . . . . . . . . . . . . Construction Impeded 1 | . . . . 1 . . . . . . . . . Haulers Reinforced 1 | . . . . 1 . . . . . . . . . Active Scanning Responses . | . . . . . . . . . . . . . . Cargo Convoy Interrupts 2 | . . . . 1 . . 1 . . . . . . Stealth | -11 -10 -9 -8 -7 -6 -6 -6 -5 -4 -4 -4 -4 -3 --------- Run | Yrd Mat Mat Mat Fac Fac Was Fac Fac Fac Upp Upp War Pro Distress Signals 11 | . 1 4 . . 4 . . . 2 . . . . Communications Jammed . | . . . . . . . . . . . . . . Distress Signals . | . . . . . . . . . . . . . . Times Spotted 147 | . 7 31 3 24 8 6 22 1 12 1 14 9 9 Peak Tracking Total 14 | . 2 9 1 13 4 6 14 1 5 1 7 10 9 Tactical Retreats 11 | . 1 2 . . . 1 . . 4 . 3 . . Traps | -11 -10 -9 -8 -7 -6 -6 -6 -5 -4 -4 -4 -4 -3 ------- Run | Yrd Mat Mat Mat Fac Fac Was Fac Fac Fac Upp Upp War Pro Traps Triggered 3 | . . 2 . . 1 . . . . . . . . Indirectly . | . . . . . . . . . . . . . . Trap Hack Attempts . | . . . . . . . . . . . . . . Triggered . | . . . . . . . . . . . . . . Disarmed . | . . . . . . . . . . . . . . Reprogrammed 4 | . . . 4 . . . . . . . . . . Reused . | . . . . . . . . . . . . . . Traps Extracted . | . . . . . . . . . . . . . . Installed . | . . . . . . . . . . . . . . Triggered 10 | . . . . . . . . . . . . 10 . Machines | -11 -10 -9 -8 -7 -6 -6 -6 -5 -4 -4 -4 -4 -3 ---------- Run | Yrd Mat Mat Mat Fac Fac Was Fac Fac Fac Upp Upp War Pro Machines Disabled 2 | . . 1 1 . . . . . . . . . . Max in Single Turn 1 | . . 1 1 . . . . . . . . . . Machines Repaired . | . . . . . . . . . . . . . . Machines Dismantled . | . . . . . . . . . . . . . . Machines Sabotaged . | . . . . . . . . . . . . . . Overloaded Fab Kills . | . . . . . . . . . . . . . . Hacking | -11 -10 -9 -8 -7 -6 -6 -6 -5 -4 -4 -4 -4 -3 --------- Run | Yrd Mat Mat Mat Fac Fac Was Fac Fac Fac Upp Upp War Pro Machines Accessed 35 | . 7 6 5 2 . . 2 1 3 1 . 8 . Terminals 16 | . 6 3 4 1 . . 1 . 1 . . . . Fabricators 1 | . . . . . . . 1 . . . . . . Repair Stations 5 | . . 1 1 . . . . 1 2 . . . . Recycling Units 2 | . 1 1 . . . . . . . . . . . Scanalyzers 2 | . . 1 . 1 . . . . . . . . . Garrison Access . | . . . . . . . . . . . . . . Total Hacks 98 | . 22 17 14 14 . . 2 1 5 1 . 22 . Successful 64 | . 11 10 8 10 . . 1 . 1 1 . 22 . Failed 34 | . 11 7 6 4 . . 1 1 4 . . . . Catastrophic 5 | . 2 . 3 . . . . . . . . . . Database Lockouts . | . . . . . . . . . . . . . . Manual 50 | . 22 8 9 5 . . . . 2 . . 4 . Terminals 43 | . 18 6 11 5 . . 1 . 2 . . . . Fabricators 1 | . . . . . . . 1 . . . . . . Repair Stations 11 | . . 4 3 . . . . 1 3 . . . . Recycling Units 8 | . 4 4 . . . . . . . . . . . Scanalyzers 12 | . . 3 . 9 . . . . . . . . . Garrison Access . | . . . . . . . . . . . . . . Terminal Hacks 34 | . 5 1 4 1 . . . . . 1 . 22 . Record 15 | . . . . . . . . . . . . 15 . Robot Analysis 4 | . 3 . 1 . . . . . . . . . . Prototype ID Bank 5 | . . . . . . . . . . . . 5 . Open Door 3 | . . . . . . . . . . 1 . 2 . Terminal Index 3 | . 1 . 1 1 . . . . . . . . . Unreport Threat 1 | . . 1 . . . . . . . . . . . Locate Traps 2 | . 1 . 1 . . . . . . . . . . Reprogram Traps 1 | . . . 1 . . . . . . . . . . Fabricator Hacks 1 | . . . . . . . 1 . . . . . . Network Status 1 | . . . . . . . 1 . . . . . . Repair Station Hacks 7 | . . 3 3 . . . . . 1 . . . . Scan Component 5 | . . 2 2 . . . . . 1 . . . . Repair 2 | . . 1 1 . . . . . . . . . . Recycling Unit Hacks 3 | . 1 2 . . . . . . . . . . . Report Inventory 2 | . 1 1 . . . . . . . . . . . Retrieve Components 1 | . . 1 . . . . . . . . . . . Scanalyzer 9 | . . 1 . 8 . . . . . . . . . Insert Component 5 | . . 1 . 4 . . . . . . . . . Analyze 4 | . . . . 4 . . . . . . . . . Garrison Access Hacks . | . . . . . . . . . . . . . . Unauthorized Hacks 10 | . 5 3 1 1 . . . . . . . . . Terminals 7 | . 3 2 1 1 . . . . . . . . . Assimilate 3 | . 2 1 . . . . . . . . . . . Operators 4 | . 1 1 1 1 . . . . . . . . . Fabricators . | . . . . . . . . . . . . . . Repair Stations . | . . . . . . . . . . . . . . Recycling Units 3 | . 2 1 . . . . . . . . . . . Reject 2 | . 1 1 . . . . . . . . . . . Mask 1 | . 1 . . . . . . . . . . . . Scanalyzers . | . . . . . . . . . . . . . . Garrison Access . | . . . . . . . . . . . . . . Data Cores Recovered 1 | . 1 . . . . . . . . . . . . Used . | . . . . . . . . . . . . . . Hacking Detections 22 | . 6 5 5 1 . . 1 1 3 . . . . Full Trace Events 3 | . 1 1 1 . . . . . . . . . . Feedback Events . | . . . . . . . . . . . . . . Feedback Blocked . | . . . . . . . . . . . . . . Robot Schematics Acquired . | . . . . . . . . . . . . . . Robots Built . | . . . . . . . . . . . . . . Authchips . | . . . . . . . . . . . . . . Time . | . . . . . . . . . . . . . . Total Robot Build Rating . | . . . . . . . . . . . . . . Part Schematics Acquired 4 | . . . . 4 . . . . . . . . . Parts Built . | . . . . . . . . . . . . . . Authchips . | . . . . . . . . . . . . . . Time . | . . . . . . . . . . . . . . Total Part Build Rating . | . . . . . . . . . . . . . . Parts Repaired 2 | . . 1 1 . . . . . . . . . . Time 58 | . . 26 32 . . . . . . . . . . Parts Recycled . | . . . . . . . . . . . . . . Recycled Matter . | . . . . . . . . . . . . . . Retrieved Matter . | . . . . . . . . . . . . . . Retrieved Components 10 | . . 10 . . . . . . . . . . . Parts Scanalyzed 4 | . . . . 4 . . . . . . . . . Part Schematics Acquired 4 | . . . . 4 . . . . . . . . . Parts Damaged . | . . . . . . . . . . . . . . Bothacking | -11 -10 -9 -8 -7 -6 -6 -6 -5 -4 -4 -4 -4 -3 ------------ Run | Yrd Mat Mat Mat Fac Fac Was Fac Fac Fac Upp Upp War Pro Used RIF Installer . | . . . . . . . . . . . . . . Robots Hacked . | . . . . . . . . . . . . . . Non-combat . | . . . . . . . . . . . . . . Combat . | . . . . . . . . . . . . . . Robot Hacks Applied . | . . . . . . . . . . . . . . Relay Couplers Released . | . . . . . . . . . . . . . . Fabnet Peak Effective % . | . . . . . . . . . . . . . . Robots Rewired 5 | . . . . . . . . . . . . 5 . Allies Hacked . | . . . . . . . . . . . . . . Hacks Repelled . | . . . . . . . . . . . . . . Allies | -11 -10 -9 -8 -7 -6 -6 -6 -5 -4 -4 -4 -4 -3 -------- Run | Yrd Mat Mat Mat Fac Fac Was Fac Fac Fac Upp Upp War Pro Total Allies 7 | . . . . . . 1 . . . . 1 5 . Largest Group 5 | . . . . . . 1 . . . . 1 5 . Highest-Rated Group 269 | . . . . . . 31 . . . . 146 269 . Highest-Rated Ally 146 | . . . . . . 31 . . . . 146 65 . Total Orders . | . . . . . . . . . . . . . . Ally Attacks 16 | . . . . . . 5 . . . . 11 . . Total Damage 1317 | . . . . . . 105 . . . . 1212 . . Kills 7 | . . . . . . . . . . . 7 . . Allies Corrupted . | . . . . . . . . . . . . . . Allies Melted . | . . . . . . . . . . . . . . Intel | -11 -10 -9 -8 -7 -6 -6 -6 -5 -4 -4 -4 -4 -3 ------- Run | Yrd Mat Mat Mat Fac Fac Was Fac Fac Fac Upp Upp War Pro Robot Analysis Total 4 | . 3 . 1 . . . . . . . . . . Derelict Logs Recovered 3 | . . . . . . . . . . 1 2 . . Drone Launches . | . . . . . . . . . . . . . . Drone Recoveries . | . . . . . . . . . . . . . . Exploration | -11 -10 -9 -8 -7 -6 -6 -6 -5 -4 -4 -4 -4 -3 ------------- Run | Yrd Mat Mat Mat Fac Fac Was Fac Fac Fac Upp Upp War Pro Turns Passed 7503 | 211 758 961 1104 1090 318 180 801 124 414 148 590 739 65 Spaces Moved 6213 | 134 507 457 534 583 133 172 592 162 819 496 745 794 85 Core 435 | 10 . . . . . 142 77 . . . 206 . . Treads 1604 | . . 323 534 583 133 30 . . . . 1 . . Legs . | . . . . . . . . . . . . . . Wheels 765 | 124 507 134 . . . . . . . . . . . Hover 1685 | . . . . . . . 405 122 . . 279 794 85 Flight 1724 | . . . . . . . 110 40 819 496 259 . . Fastest Speed 23 | 50 80 95 160 155 155 50 35 35 23 26 26 70 70 Average Speed 90 | 86 92 140 169 155 216 86 83 61 26 26 62 84 70 Slowest Speed 700 | 100 95 160 240 160 235 700 170 115 115 26 250 150 70 Overloaded Moves . | . . . . . . . . . . . . . . Propulsion Burnouts . | . . . . . . . . . . . . . . Robots Hopped 3 | . . . . . . . 1 2 . . . . . Cave-ins Triggered 1 | . . . . . . . . . 1 . . . . Exploration Rate (%) 37 | 5 49 37 54 16 7 78 16 6 14 64 84 79 15 Regions Visited 13 Branch Regions 4 Pre-discovered Areas 3 | . . . . . . . . . . 1 2 . . Known Exits Taken 6 | . . . . 1 . . . 1 1 1 1 1 . Unknown Exits Taken 5 | 1 1 1 1 . . . 1 . . . . . . Scrap Searched 6 | . . . . . . . . . . 2 4 . . Spaces Dug 26 | . . . . . . . 1 1 17 6 1 . . Terrain Destroyed 26 | . . . . . . . 1 1 17 6 1 . . Melee 26 | . . . . . . . 1 1 17 6 1 . . Projectile . | . . . . . . . . . . . . . . AOE . | . . . . . . . . . . . . . . Terrain Rammed . | . . . . . . . . . . . . . . Walls Destroyed . | . . . . . . . . . . . . . . Machines Disabled . | . . . . . . . . . . . . . . Actions | -11 -10 -9 -8 -7 -6 -6 -6 -5 -4 -4 -4 -4 -3 --------- Run | Yrd Mat Mat Mat Fac Fac Was Fac Fac Fac Upp Upp War Pro Total 7636 | 190 779 641 667 747 147 195 843 181 963 505 829 858 91 Wait 858 | 8 256 47 77 123 4 15 179 10 79 . 24 32 4 Move 6195 | 133 506 456 533 582 133 171 589 157 818 495 744 793 85 Hop 3 | . . . . . . . 1 2 . . . . . Pick Up 69 | 11 4 25 3 6 . 1 7 2 3 . 6 1 . Fast Attach 88 | 9 . 6 5 4 . 2 22 6 20 2 7 5 . Attach 40 | . . 13 1 2 2 . 8 . 2 . 11 . 1 Detach 26 | 2 . 5 1 2 . . 5 1 2 . 6 2 . Swap 8 | . 1 2 2 2 1 . . . . . . . . Drop 63 | 5 3 11 6 11 . 3 8 2 8 2 1 3 . Fire 175 | 22 9 74 32 11 7 3 . . . . 17 . . Melee 71 | . . . . . . . 24 1 31 6 9 . . Ram 3 | . . . . . . . . . . . 2 . 1 Kick . | . . . . . . . . . . . . . . Crush 13 | . . 2 7 4 . . . . . . . . . Escape Stasis . | . . . . . . . . . . . . . . Rewire 24 | . . . . . . . . . . . 2 22 . Trap . | . . . . . . . . . . . . . . Miscellaneous . | . . . . . . . . . . . . . . Route ------- -11/Scrapyard -10/Materials -9/Materials -8/Materials (discovered 2 exits: *Fac / [*Sto]) -7/Factory -6/Factory -6/Waste -6/Factory -5/Factory -4/Factory -4/Upper Caves -4/Upper Caves (discovered 2 exits: *Res / *War) -4/Warlord -3/Proximity Caves History --------- Turn | Location | Event 7 | -11/Scrapyard | Discovered new exit (range 16) 212 | -11/Scrapyard | Entered Materials 308 | -10/Materials | Build established: Mutant 891 | -10/Materials | Discovered new exit (range 12) 970 | -10/Materials | Entered another Materials area 970 | -9/Materials | Evolved 2 slots: Utility x2 1226 | -9/Materials | Lost 6 parts (1p2n1u2w) 1249 | -9/Materials | Destroyed 7 combat bots 1540 | -9/Materials | Repaired Wheel 1639 | -9/Materials | Core integrity fell below 50% 1853 | -9/Materials | Discovered new exit (range 8) 1931 | -9/Materials | Entered another Materials area 1931 | -8/Materials | Evolved 2 slots: Propulsion x1, Utility x1 1952 | -8/Materials | Build established: Scavenger-Mutant 2444 | -8/Materials | Repaired Hvy. Assault Rifle 2472 | -8/Materials | Discovered new exit (range 4) 2924 | -8/Materials | Met 7R-MNS 2983 | -8/Materials | Discovered new exit (range 18) 3035 | -8/Materials | Entered Factory 3035 | -7/Factory | Evolved 2 slots: Utility x2 3036 | -7/Factory | Caught up to 7R-MNS 3403 | -7/Factory | Build established: Mutant 3717 | -7/Factory | Discovered new exit (range 19) 3722 | -7/Factory | Build established: Scavenger-Skirmisher 4009 | -7/Factory | Cargo convoy interrupted 4123 | -7/Factory | Identified exit to Factory 4125 | -7/Factory | Entered another Factory area 4125 | -6/Factory | Evolved 2 slots: Utility x1, Weapon x1 4126 | -6/Factory | Caught up to 7R-MNS 4259 | -6/Factory | Discovered new exit (range 9) 4443 | -6/Factory | Sucked down chute 4443 | -6/Factory | Entered Waste 4444 | -6/Waste | Met a frightened Derelict 4479 | -6/Waste | Build established: Scavenger-Tank 4487 | -6/Waste | Spotted C-40 Crusher 4495 | -6/Waste | Spotted C-40 Crusher 4510 | -6/Waste | Crushed by Compactor (1 part destroyed, 2 dropped) 4516 | -6/Waste | Spotted C-40 Crusher 4518 | -6/Waste | Spotted C-40 Crusher 4523 | -6/Waste | Crushed by Compactor (1 part destroyed, 1 dropped) 4526 | -6/Waste | Crushed by Compactor (1 part destroyed, 2 dropped) 4527 | -6/Waste | Crushed by Compactor (1 part destroyed, 1 dropped) 4529 | -6/Waste | Crushed by Compactor (1 part destroyed, 2 dropped) 4532 | -6/Waste | Crushed by Compactor (1 part destroyed, 2 dropped) 4563 | -6/Waste | Lost 6 parts (1n2u3w) 4579 | -6/Waste | Spotted C-40 Crusher 4580 | -6/Waste | Spotted C-40 Crusher 4609 | -6/Waste | Discovered new exit (range 10) 4623 | -6/Waste | Entered Factory 4846 | -6/Factory | Build established: Mutant 5257 | -6/Factory | Lost 4 parts (1p2n1u) 5364 | -6/Factory | Cargo convoy interrupted 5366 | -6/Factory | Core integrity fell below 50% 5386 | -6/Factory | Core integrity fell below 20% 5417 | -6/Factory | Lost 7 parts (1p4n2u) 5422 | -6/Factory | Discovered new exit (range 4) 5424 | -6/Factory | Entered another Factory area 5424 | -5/Factory | Evolved 2 slots: Propulsion x1, Utility x1 5532 | -5/Factory | Discovered new exit (range 8) 5546 | -5/Factory | Identified exit to Factory 5548 | -5/Factory | Entered another Factory area 5548 | -4/Factory | Evolved 2 slots: Propulsion x1, Utility x1 5704 | -4/Factory | Crushed by falling debris 5917 | -4/Factory | Build established: Scavenger-Sprinter 5956 | -4/Factory | Discovered new exit (range 3) 5957 | -4/Factory | Identified exit to Upper Caves 5962 | -4/Factory | Entered Upper Caves 6100 | -4/Upper Caves | Learned location of Armory (-4) 6106 | -4/Upper Caves | Discovered new exit (range 6) 6108 | -4/Upper Caves | Identified exit to Upper Caves 6110 | -4/Upper Caves | Entered another Upper Caves area 6134 | -4/Upper Caves | Discovered new exit (range 3) 6135 | -4/Upper Caves | Identified exit to Research 6215 | -4/Upper Caves | System corruption reached 10% 6238 | -4/Upper Caves | Lost 5 parts (1p2n1u1w) 6312 | -4/Upper Caves | Lost 5 parts (3n2u) 6337 | -4/Upper Caves | Attracted the attention of an 0b10 outpost 6377 | -4/Upper Caves | Core integrity fell below 50% 6395 | -4/Upper Caves | Lost 8 parts (1p1n4u2w) 6425 | -4/Upper Caves | Core integrity fell below 20% 6448 | -4/Upper Caves | NK-0LA showed up to help 6502 | -4/Upper Caves | Build established: Hacker-Mutant 6629 | -4/Upper Caves | Discovered new exit (range 15) 6696 | -4/Upper Caves | Identified exit to Warlord 6700 | -4/Upper Caves | Entered Warlord 6764 | -4/Warlord | System corruption cleaned by Quarantine Array 6990 | -4/Warlord | Received a Watcher feed algorithm from an ecstatic Tinkerer 7013 | -4/Warlord | Found Prototype Device 7013 | -4/Warlord | Identified Minesniffer Drone Bay 7022 | -4/Warlord | Found Minesniffer Drone Bay 7071 | -4/Warlord | Visited the Vortex Lab 7090 | -4/Warlord | Warlord's base attacked by MAIN.C 7323 | -4/Warlord | Met Warlord 7420 | -4/Warlord | Opened side exit 7434 | -4/Warlord | Discovered new exit (range 10) 7438 | -4/Warlord | Identified exit to Proximity Caves 7439 | -4/Warlord | Entered Proximity Caves 7491 | -3/Proximity Caves | Attracted the attention of an 0b10 outpost 7504 | -3/Proximity Caves | Destroyed by S-43 Plague with Heavy Machine Gun Last Messages --------------- 07435_ Backup Laser III blown off. 07435_ Backup Laser III disintegrated. 07435_ Mak. Hammer blown off. 07435_ Beamcaster blown off. 07435_ Backup Propulsion III blown off. 07435_ Backup Propulsion III disintegrated. 07435_ E-15 Imp destroyed. 07437_ G-73 Enforcer triggered Dirty Bomb Trap. 07437_ An explosion rips through the floor. 07438_ G-73 Enforcer misfires. 07438_ EXIT=IDENTIFIED: PROXIMITY CAVES LOCATION=PROXIMITY CAVES GOAL=ESCAPE 07491_ Y-72 Warden: "DETECTED UNIDENTIFIED DERELICT." 07495_ Y-72 Warden: "REQUESTING BACKUP." 07495_ S-43 Plague destroyed. 07496_ Mic. Fission Core destroyed. 07496_ Slug penetrates Wall. 07504_ Slammed into S-43 Plague. Map ----- +----------------------------------------------------+ | | | | | | | | | | | ?????????????????????????????????????????????????? | | ?????????????????????????????????????????????????? | | ?????????????????????????????????????????????????? | | ?????????????????????????????????????????????????? | | ?????????????????????????????????????????????????? | | ?????????????????????????????????????????????????? | | ?????????????????????????????????????????????????? | | ?????????????????????????????????????????????????? | | ?????????????????????????????????????????????????? | | ?????????????????????????????????????????????????? | | ?????????????????????????????????????????????????? | | ?????????????????????????????????????????????????? | | ?????????????????????????????????????????????????? | | ?????????????????????????????????????????????????? | | ?????????????????????????????????????????????????? | | ?????????????????????????????????????????????????? | | ????????????????????#####????????????????????????? | | ????????????????????# #????????????????????????? | | ???????????????????## ##???????????????????????? | | ???????????####???## s###?????????????????????? | | ???????????# #??# @ ###???????????????????? | | ####???????# ??# s ##??????????????????? | | ########## ### ## #??????????????????? | | ## s ### #??????????????????? | | ### ##?###??????????????????? | | ########## #### ##?????????????????????? | | #????????# ## #?????????????????????? | | #???????## ?????????????????? | | ##?????## #????????????????? | | ##???## ## g #????????????????? | | ##### ###### ##????????????????? | | ## #???# #?????????????????? | | #???# =%* #?????????????????? | | ##??? = ?????????????????? | | ### ##???? # # ??????????????????? | | #### ###????? ### ###???????????????????? | | ### ##??????? #?? ?????????????????????? | | ##?????? #??? ?????????????????????? | | ##?????? #??????????????????????????? | | #?????? #??????????????????????????? | | ## #?????? ?#??????????????????????????? | | ?## ##???????? ??????????????????????????????? | | ??# ###????????????????????????????????????????? | | ??# #??????????????????????????????????????????? | | ### ##?????????????????????????????????????????? | +----------------------------------------------------+ Best States ------------- Heat Dissipation 59 Energy Generation 25 Energy Capacity 340 Matter Stores 300 Matter Capacity 300 Sight Range 20 Robot Scan Range 18 Terrain Scan Range 16 Terrain Scan Density 210 Armor Coverage 600 Evasion (%) 65 Targeting Accuracy 24 Melee Accuracy 10 Recoil Reduction 3 Offensive Hacking 14 Defensive Hacking 20 Item Schematics ----------------- Med. Armor Plating | -7/Factory | Scanalyzed Imp. Light Cannon | -7/Factory | Scanalyzed Lgt. Treads | -7/Factory | Scanalyzed Cooling System | -7/Factory | Scanalyzed Robot Schematics ------------------ None Fabricated ------------ Nothing Alien Tech Used ----------------- None Achievements -------------- None Challenges ------------ None Game ------ Seed GuidanceRecyclingDerivative Manual? 0 Play Time 01:08:24 Cumulative 117.4 hours Start 2024.03.23 @ 20:36:49 End 2024.03.24 @ 00:48:24 Sessions 2 Manual Loads 0 Difficulty Rogue Special Mode None Game No. 116 Rogue 116 Adventurer 0 Explorer 0 Win Type - Total 0 Types 0/0/0/0/0/0/0/0/0 Lore% 43 Gallery% 55 Achievement% 36 Wizard Run 0 Options --------- Layout 2 ASCII 1 Keyboard 1 Movement Numpad Keybinds 0 Fullscreen 2 Font 32/TamsynBold Map View 50x44 Zoom Use 0% Tactical HUD 1 Map Filters NONE Filters NONE Steam 1 RUN: 600b4014-b239-4a13-a988-cf721052c32c